Cogmind - Beta 17 @@@ ROGUE MODE // 2026.07.25 @ 19:05:11 Player: Afro Result: Destroyed by S-10 Pest with Light Assault Rifle Performance ------------- Evolutions (0) 0 Regions Visited (1) 200 Robots Destroyed (11) 55 Value Destroyed (119) 119 Prototype IDs (0) 0 Alien Tech Used (0) 0 Bonus (0) 0 TOTAL SCORE: 374 Bonus ------- None Cogmind --------- Core Integrity 0/250 Matter 300/300 Energy 99/100 System Corruption 0% Temperature Cool (0) Movement Core (100) Ox1 Location -10/Materials Parts ------- > --- POWER (1) -------- (None) > --- PROPULSION (2) --- (None) > --- UTILITY (2) ------ Small Storage Unit > --- WEAPON (2) ------- (None) > --- INVENTORY (8) ---- Ion Engine High-capacity Matter Pod (200) Improved Terrain Scanner Improved Terrain Scanner Improved Terrain Scanner Seismic Detector Peak State ------------ > --- POWER ------------ Ion Engine > --- PROPULSION ------- Light Treads Light Treads > --- UTILITY ---------- Small Storage Unit Improved Terrain Scanner > --- WEAPON ----------- EM Pulse Gun Small Laser > --- INVENTORY -------- Ion Engine Improved Terrain Scanner Improved Terrain Scanner Seismic Detector Seismic Detector Mining Laser [Rating: 10] Favorites ----------- Power Ion Engine Engine Ion Engine Propulsion Light Treads Treads Light Treads Utility Small Storage Unit Device Seismic Detector Storage Small Storage Unit Weapon Mining Laser Energy Gun Small Laser Special Weapon Mining Laser Build | -11 -10 ------- Run | Yrd Mat Slots Evolved . | . . Power . | . . Propulsion . | . . Utility . | . . Weapon . | . . Parts Attached 12 | 7 5 Power 1 | 1 . Engine 1 | 1 . Core . | . . Reactor . | . . Propulsion 2 | 2 . Treads 2 | 2 . Leg . | . . Wheel . | . . Hover . | . . Flight . | . . Utility 3 | 2 1 Device 2 | 1 1 Storage 1 | 1 . Processor . | . . Hackware . | . . Protection . | . . Artifact . | . . Weapon 6 | 2 4 Energy Gun 2 | 2 . Energy Cannon . | . . Ballistic Gun . | . . Ballistic Cannon . | . . Launcher . | . . Special Weapon 4 | . 4 Impact Weapon . | . . Slashing Weapon . | . . Piercing Weapon . | . . Special Melee Weapon . | . . Unidentified Prototypes . | . . Parts Lost 8 | . 8 Power 1 | . 1 Propulsion 2 | . 2 Utility 1 | . 1 Weapon 4 | . 4 Highest Loss Streak 8 | . 8 To Critical Strikes . | . . Average Backups 5 | 3 7 Power . | . 1 Propulsion . | . . Utility 3 | 1 4 Weapon 1 | . 1 Tool/Special . | . . Unused Backups 6 | . 6 Power 1 | . 1 Propulsion . | . . Utility 5 | . 5 Weapon . | . . Tool/Special . | . . Average Slot Usage (%) 92 | . 92 Engine 12 | . 12 Treads 26 | . 26 Device 13 | . 13 Storage 14 | . 14 Energy Gun 10 | . 10 Special Weapon 13 | . 13 Peak Build Rating 10 | 10 10 Average Rating 7 | 7 7 On Entrance 5 | . 10 Avg Prop Armor Cover (%) . | . . Naked Turns . | . . Heaviest Build 14 | 14 14 Greatest Support 40 | 40 40 Greatest Overweight (x) 2 | . 2 Average Overweight (x) . | . . Largest Inventory Capacity 8 | 8 8 Average Capacity 7 | 7 8 Most Carried 8 | 6 8 Average Carried 5 | 3 7 Final Capacity 8 | 8 8 Final Carried 6 | 6 6 Class Distribution -------------------- 100% | Mutant Dominant Class ---------------- Mutant | -10/Materials Resources | -11 -10 ----------- Run | Yrd Mat Matter Collected 510 | 270 240 Remotely . | . . Salvage Created 313 | 226 87 Parts 28 | 20 8 Haulers Intercepted . | . . Recyclers Shooed 2 | 2 . Parts Field Recycled . | . . Retrieved Matter . | . . Parts Self-Destructed . | . . Prevented . | . . Parts Restored . | . . Kills | -11 -10 ------- Run | Yrd Mat Combat Hostiles Destroyed 3 | . 3 Cannons 1 | . 1 AOE 2 | . 2 Classes Destroyed 6 | 3 3 Worker 2 | 2 . Builder 1 | . 1 Tunneler 4 | 4 . Recycler 1 | 1 . Swarmer 1 | . 1 Grunt 2 | . 2 Best Kill Streak 2 | 2 2 Combat Bots Only 2 | . 2 Max Kills in Single Turn 1 | 1 1 Gunslinging . | . . Exploded 1 | . 1 Melee . | . . Uniques/NPCs Destroyed . | . . Combat | -11 -10 -------- Run | Yrd Mat Hostile Shots Fired 132 | . 132 Missed 38 | . 38 Hits 94 | . 94 Projectile 94 | . 94 Critical Strikes 1 | . 1 Damage Taken 851 | . 851 Core 251 | . 251 Absorbed by Shields . | . . Core Remaining (%) 100 | 100 . Volleys Fired 31 | 17 14 Largest 2 | 2 2 Hottest 200 | 80 200 Shots Fired 59 | 34 25 Gun 44 | 34 10 Cannon . | . . Launcher . | . . Special 15 | . 15 Kinetic . | . . Thermal 37 | 17 20 Explosive . | . . Electromagnetic 22 | 17 5 Robot Hit Streak 8 | 7 8 Robot Miss Streak 7 | 3 7 Penetration Max . | . . Secondary Targets . | . . Shots Hit Robots 32 | 23 9 Core Hits 15 | 8 7 Critical Kills . | . . Critical Parts Destroyed . | . . Critical Strikes . | . . Melee Attacks . | . . Impact . | . . Slashing . | . . Piercing . | . . Sneak Attacks . | . . Combat Hostiles . | . . Follow-up Attacks . | . . Damage Inflicted 523 | 280 243 Guns 358 | 280 78 Cannons . | . . Explosions 90 | . 90 Melee . | . . Ramming 3 | . 3 Kinetic . | . . Thermal 292 | 110 182 Explosive . | . . Electromagnetic 228 | 170 58 Impact . | . . Slashing . | . . Piercing . | . . Highest Corruption . | . . Average Corruption . | . . Corruption Purged . | . . Corruption Blocked . | . . Overload Shots . | . . Overflow Damage 4 | . 4 Projectiles 4 | . 4 Explosions . | . . Melee . | . . Knockbacks . | . . Impact . | . . Kinetic . | . . Secondary . | . . Self-Inflicted Damage 63 | . 63 Shots 2 | . 2 Rammed 3 | . 3 Targets Rammed 3 | . 3 Kicked . | . . Crushed . | . . Highest Temperature 211 | 36 211 Average Temperature 55 | 18 79 Received Heat Transfer 96 | . 96 Siege Activations . | . . Martial Activations . | . . Shielding Activations . | . . Robots Disrupted . | . . Combat Hostiles . | . . Robots Corrupted . | . . Combat Hostiles . | . . Parts Fried 1 | 1 . Impact Corruptions . | . . Robots Melted . | . . Combat Hostiles . | . . Parts Melted . | . . Heat Transferred 500 | 250 250 Parts Sabotaged . | . . Parts Stolen . | . . Parts Stripped . | . . Power Chain Reactions 2 | . 2 Alert | -11 -10 ------- Run | Yrd Mat Maximum Alert Level . | . . Low Security (%) 100 | 100 100 Level 1 . | . . Level 2 . | . . Level 3 . | . . Level 4 . | . . Level 5 . | . . High Security . | . . Max Security . | . . Peak Influence 51 | 5 51 Initial . | . . Average 4 | 1 6 Influence Increases 130 | 35 95 Destroy 0b10 Robot/C 60 | . 60 Destroy 0b10 Robot/NC 40 | 35 5 Destroy Leader 10 | . 10 Successful Hack 2 | . 2 Destroy Structure 18 | . 18 Influence Decreases 130 | 35 95 Time Decay 109 | 35 74 Lost Part 21 | . 21 Squads Dispatched 2 | . 2 Investigation 2 | . 2 Extermination . | . . Reinforcement . | . . Assault . | . . Garrison . | . . Intercept . | . . Searches Triggered . | . . Construction Impeded . | . . Haulers Reinforced . | . . Active Scanning Responses . | . . Cargo Convoy Interrupts . | . . Stealth | -11 -10 --------- Run | Yrd Mat Distress Signals . | . . Communications Jammed . | . . Distress Signals . | . . Times Spotted 8 | . 8 Peak Tracking Total 5 | . 5 Tactical Retreats . | . . Traps | -11 -10 ------- Run | Yrd Mat Traps Triggered 2 | . 2 Indirectly . | . . Trap Hack Attempts . | . . Triggered . | . . Disarmed . | . . Reprogrammed . | . . Reused . | . . Traps Extracted . | . . Installed . | . . Triggered . | . . Machines | -11 -10 ---------- Run | Yrd Mat Machines Disabled . | . . Max in Single Turn . | . . Machines Repaired . | . . Machines Dismantled . | . . Machines Sabotaged . | . . Overloaded Fab Kills . | . . Hacking | -11 -10 --------- Run | Yrd Mat Machines Accessed 2 | . 2 Terminals 2 | . 2 Fabricators . | . . Repair Stations . | . . Recycling Units . | . . Scanalyzers . | . . Garrison Access . | . . Total Hacks 4 | . 4 Successful 3 | . 3 Failed 1 | . 1 Catastrophic . | . . Database Lockouts . | . . Manual . | . . Terminals 4 | . 4 Fabricators . | . . Repair Stations . | . . Recycling Units . | . . Scanalyzers . | . . Garrison Access . | . . Terminal Hacks 3 | . 3 Record 2 | . 2 Emergency Access Points 1 | . 1 Fabricator Hacks . | . . Repair Station Hacks . | . . Recycling Unit Hacks . | . . Scanalyzer . | . . Garrison Access Hacks . | . . Unauthorized Hacks . | . . Terminals . | . . Fabricators . | . . Repair Stations . | . . Recycling Units . | . . Scanalyzers . | . . Garrison Access . | . . Data Cores Recovered . | . . Used . | . . Hacking Detections 1 | . 1 Full Trace Events 1 | . 1 Feedback Events . | . . Feedback Blocked . | . . Robot Schematics Acquired . | . . Robots Built . | . . Authchips . | . . Time . | . . Total Robot Build Rating . | . . Part Schematics Acquired . | . . Parts Built . | . . Authchips . | . . Time . | . . Total Part Build Rating . | . . Part Studies Acquired . | . . Parts Repaired . | . . Time . | . . Parts Recycled . | . . Recycled Matter . | . . Retrieved Matter . | . . Retrieved Components . | . . Parts Scanalyzed . | . . Part Schematics Acquired . | . . Parts Damaged . | . . Bothacking | -11 -10 ------------ Run | Yrd Mat Used RIF Installer . | . . Robots Hacked . | . . Non-combat . | . . Combat . | . . Robot Hacks Applied . | . . Relay Couplers Released . | . . Fabnet Peak Effective % . | . . Robots Rewired . | . . Allies Hacked . | . . Hacks Repelled . | . . Allies | -11 -10 -------- Run | Yrd Mat Total Allies . | . . Largest Group . | . . Highest-Rated Group . | . . Highest-Rated Ally . | . . Total Orders . | . . Ally Attacks . | . . Total Damage . | . . Kills . | . . Allies Corrupted . | . . Allies Melted . | . . Intel | -11 -10 ------- Run | Yrd Mat Active Infowar (turns) 631 | 142 489 Terrain 228 | 142 86 Seismic 403 | . 403 Robot Analysis Total . | . . Derelict Logs Recovered . | . . Drone Launches . | . . Drone Recoveries . | . . Exploration | -11 -10 ------------- Run | Yrd Mat Turns Passed 730 | 234 496 Spaces Moved 357 | 113 244 Core 35 | 15 20 Treads 322 | 98 224 Legs . | . . Wheels . | . . Hover . | . . Flight . | . . Fastest Speed 50 | 50 100 Average Speed 152 | 145 155 Slowest Speed 160 | 160 160 Overloaded Moves . | . . Propulsion Burnouts . | . . Robots Hopped . | . . Potential Cave-ins . | . . Cave-ins Triggered . | . . Exploration Rate (%) 25 | 6 45 Regions Visited 1 Branch Regions . Pre-discovered Areas . | . . Known Exits Taken . | . . Unknown Exits Taken 1 | 1 . Scrap Searched . | . . Spaces Dug . | . . Terrain Destroyed 18 | . 18 Melee . | . . Projectile 7 | . 7 AOE 11 | . 11 Terrain Rammed . | . . Walls Destroyed . | . . Machines Disabled . | . . Actions | -11 -10 --------- Run | Yrd Mat Total 452 | 149 303 Wait 29 | . 29 Move 356 | 112 244 Hop . | . . Pick Up 17 | 13 4 Fast Attach 1 | . 1 Attach 10 | 7 3 Detach . | . . Swap 2 | . 2 Drop 3 | . 3 Fire 31 | 17 14 Melee . | . . Ram . | . . Kick . | . . Crush 3 | . 3 Escape Stasis . | . . Rewire . | . . Trap . | . . Miscellaneous . | . . Route ------- -11/Scrapyard -10/Materials (discovered 1 exit: [*Mat]) History --------- Turn | Location | Event 21 | -11/Scrapyard | Discovered new exit (range 15) 235 | -11/Scrapyard | Entered Materials 312 | -10/Materials | Build established: Mutant 708 | -10/Materials | Core integrity fell below 50% 723 | -10/Materials | Discovered new exit (range 16) 729 | -10/Materials | Core integrity fell below 20% 731 | -10/Materials | Destroyed by S-10 Pest with Light Assault Rifle Last Messages --------------- Mining Laser destroyed. K-01 Serf collects debris. R-06 Scavenger collects Wheel. R-06 Scavenger collects Terrain Scanner. R-06 Scavenger collects Terrain Scan Processor. K-01 Serf collects debris. Mining Laser destroyed. K-01 Serf cleans the Neutrino Reactor. Slammed into S-10 Pest. K-01 Serf cleans the Neutrino Reactor. U-05 Engineer builds a Wall. Slammed into U-05 Engineer. Triggered Alarm Trap. An alarm sounds. ALERT: Alarm triggered, dispatching investigation squad. Lgt. Treads destroyed. Mining Laser destroyed. EXIT=FOUND Seismic Detector destroyed. Map ----- +----------------------------------------------------+ | ??????????????????? ?"" ?????? | | ??????????????????# ?????? | | ??????????????????# ?? ???? | | ?????#+###+######## ""?? ""??? | | ?????# """ ""??? | | ?????# """ """ | | ?????# """ """ | | ?????# #??# ? | | ?????# ##?# ?? | | ?????# ##### "#?# ???? | | ?????# #?###/#### ????? | | ?????# s#?# # ??????? | | ?????# #?# # ########? | | ?????# #?# # # # | | ?????# #?# """ + + """# | | ?????# #?# """ # # Y"# | | ?????# #?# """ # # """# | | ?????# #?############ # | | ?????# #????????????# # | | ?????# #????????????##+##### | | ?????# #?????????????# #???# | | ?????# #?????#######?# #???# | | ?????# #?????# ### ##### | | ?????# gg#?????# """ # ! #?## | | ?????# #?????# """ # #### | | ?????#@ #?????# """ / T | | ?????# #?????# # #### | | ?????# #?????# # #??? | | ?????T #?????# #######??? | | ?????# #?????#######?????#??? | | ?????# +????????????????????? | | ?????# #????????????????????? | | ?????# #????????????????????? | | ?????# #????????????????????? | | ?????? < #????????????????????? | | ?????? #????????????????????? | | ??????####????????????????????? | | ??????????????????????????????? | | ??????????????????????????????? | | ??????????????????????????????? | | ??????????????????????????????? | | ??????????????????????????????? | | | | | | | | | | | | | | | | | +----------------------------------------------------+ Best States ------------- Heat Dissipation 25 Energy Generation 10 Energy Capacity 250 Matter Stores 300 Matter Capacity 300 Sight Range 16 Terrain Scan Range 16 Terrain Scan Density 10 Evasion (%) 50 Recoil Reduction 2 Item Schematics ----------------- None Robot Schematics ------------------ None Fabricated ------------ Nothing Repaired ---------- Nothing Studied --------- None Alien Tech Used ----------------- None Achievements -------------- None Challenges ------------ None Game ------ Seed ArmageddonPointDrivehammer Manual? 0 Play Time 00:09:33 Cumulative 6.5 hours Start 2026.07.25 @ 18:55:50 End 2026.07.25 @ 19:05:11 Sessions 1 Manual Loads 0 Difficulty Rogue Special Mode None Game No. 6 Rogue 6 Adventurer 0 Explorer 0 Win Type - Total 0 Types 0/0/0/0/0/0/0/0/0/0 Lore% 1 Gallery% 7 Achievement% 7 Wizard Run 0 Options --------- Layout 1 ASCII 0 Keyboard 0 Movement Mouse Keybinds 0 Fullscreen 2 Font 24/Smallcaps Map View 50x35 Zoom Use 0% Tactical HUD 0 Map Filters NONE Filters NONE Steam 1 RUN: f6e0a9e6-b012-4585-83f5-f6ed72b18aa5